[Event "Speed Chess Championship 2020"]
[Site "Online"]
[Date "2020.11.11"]
[Round "1.19"]
[White "Nepomniachtchi, Ian"]
[Black "Aronian, Levon"]
[Result "1-0"]
[ECO "A01"]
[WhiteElo "2784"]
[BlackElo "2781"]
[Annotator "ChessBase"]
[PlyCount "141"]
[EventDate "2020.10.31"]
[EventType "k.o."]
[SourceTitle "playchess.com"]
[Source "ChessBase"]
[SourceQuality "1"]
[TimeControl "60+1"]

1. b3 {[%emt 0:00:01]} d5 {[%emt 0:00:01]} 2. Bb2 {[%emt 0:00:00]} Bf5 {[%emt 0:00:00]} 3. d3 {[%emt 0:00:00]} e6 {[%emt 0:00:01]} 4. Nd2 {[%emt 0:00:00]} Nf6 {[%emt 0:00:01]} 5. g3 {[%emt 0:00:01]} h6 {[%emt 0:00:02]} 6. Bg2 {[%emt 0:00:00]} Bh7 {[%emt 0:00:01]} 7. Nh3 {[%emt 0:00:00]} a5 {[%emt 0:00:02]} 8. a3 {[%emt 0:00:02]} c5 {[%emt 0:00:01]} 9. O-O {[%emt 0:00:01]} Nc6 {[%emt 0:00:01]} 10. e4 {[%emt 0:00:00]} Be7 {[%emt 0:00:04]} 11. exd5 {[%emt 0:00:01]} exd5 {[%emt 0:00:01]} 12. Nf4 {[%emt 0:00:01]} O-O {[%emt 0:00:01]} 13. Re1 {[%emt 0:00:00]} Re8 {[%emt 0:00:00]} 14. Bxf6 {[%emt 0:00:01]} Bxf6 {[%emt 0:00:01]} 15. Rxe8+ {[%emt 0:00:00]} Qxe8 {[%emt 0:00:01]} 16. Rb1 {[%emt 0:00:00]} d4 {[%emt 0:00:01]} 17. Nd5 {[%emt 0:00:01]} Bd8 {[%emt 0:00:02]} 18. Qg4 {[%emt 0:00:01]} Ne5 {[%emt 0:00:06]} 19. Re1 {[%emt 0:00:04]} Bg5 {[%emt 0:00:10]} 20. Qd1 {[%emt 0:00:01]} Bxd2 {[%emt 0:00:02]} 21. Qxd2 {[%emt 0:00:01]} Qb8 {[%emt 0:00:00]} 22. Qf4 {[%emt 0:00:06]} Nc6 {[%emt 0:00:02]} 23. Nc7 {[%emt 0:00:02]} g5 {[%emt 0:00:08]} 24. Qd6 {[%emt 0:00:03]} Qf8 {[%emt 0:00:01]} 25. Qf6 {[%emt 0:00:03]} Rd8 {[%emt 0:00:03]} 26. Bd5 {[%emt 0:00:06]} Qg7 {[%emt 0:00:07]} 27. Re8+ {[%emt 0:00:20]} Rxe8 {[%emt 0:00:02]} 28. Nxe8 {[%emt 0:00:00]} Qxf6 {[%emt 0:00:12]} 29. Nxf6+ {[%emt 0:00:00]} Kg7 {[%emt 0:00:01]} 30. Nxh7 {[%emt 0:00:01]} Kxh7 {[%emt 0:00:01]} 31. Bxf7 {[%emt 0:00:00]} Ne5 {[%emt 0:00:05]} 32. Be6 {[%emt 0:00:02]} Kg7 {[%emt 0:00:03]} 33. Kg2 {[%emt 0:00:02]} Kf6 {[%emt 0:00:01]} 34. Bc8 {[%emt 0:00:01]} b5 {[%emt 0:00:01]} 35. f4 {[%emt 0:00:01]} gxf4 {[%emt 0:00:02]} 36. gxf4 {[%emt 0:00:00]} Nf7 {[%emt 0:00:01]} 37. Kf3 {[%emt 0:00:00]} Nd6 {[%emt 0:00:02]} 38. Bd7 {[%emt 0:00:01]} Ke7 {[%emt 0:00:01]} 39. Bc6 {[%emt 0:00:01]} Kf6 {[%emt 0:00:01]} 40. Bd5 {[%emt 0:00:07]} b4 {[%emt 0:00:02]} 41. a4 {[%emt 0:00:01]} Nf5 {[%emt 0:00:02]} 42. Bb7 {[%emt 0:00:12]} Ne3 {[%emt 0:00:00]} 43. Ke4 {[%emt 0:00:01]} Ke6 {[%emt 0:00:04]} 44. Bc8+ {[%emt 0:00:01]} Kd6 {[%emt 0:00:01]} 45. f5 {[%emt 0:00:01]} Ke7 {[%emt 0:00:02]} 46. Ke5 {[%emt 0:00:02]} Nxc2 {[%emt 0:00:01]} 47. f6+ {[%emt 0:00:00]} Kf8 {[%emt 0:00:01]} 48. Kd6 {[%emt 0:00:01]} Ne1 {[%emt 0:00:01]} 49. Bf5 {[%emt 0:00:02]} Kf7 {[%emt 0:00:01]} 50. Kxc5 {[%emt 0:00:03]} Kxf6 {[%emt 0:00:01]} 51. Be4 {[%emt 0:00:00]} Ke5 {[%emt 0:00:00]} 52. Kb5 {[%emt 0:00:01]} Kd6 {[%emt 0:00:01]} 53. Kxa5 {[%emt 0:00:01]} Kc5 {[%emt 0:00:00]} 54. Ka6 {[%emt 0:00:01]} Nc2 {[%emt 0:00:00]} 55. Bg6 {[%emt 0:00:01]} Na1 {[%emt 0:00:01]} 56. Bf7 {[%emt 0:00:01]} Nc2 {[%emt 0:00:00]} 57. a5 {[%emt 0:00:01]} Ne1 {[%emt 0:00:02]} 58. Bc4 {[%emt 0:00:01]} Nf3 {[%emt 0:00:01]} 59. h3 {[%emt 0:00:02]} Kc6 {[%emt 0:00:01]} 60. Bb5+ {[%emt 0:00:03]} Kc7 {[%emt 0:00:01]} 61. Be8 {[%emt 0:00:01]} Ne5 {[%emt 0:00:01]} 62. Bb5 {[%emt 0:00:02]} Nf3 {[%emt 0:00:01]} 63. Bc4 {[%emt 0:00:01]} Ne5 {[%emt 0:00:02]} 64. Kb5 {[%emt 0:00:01]} Nc6 {[%emt 0:00:01]} 65. a6 {[%emt 0:00:01]} h5 {[%emt 0:00:01]} 66. Kc5 {[%emt 0:00:04]} h4 {[%emt 0:00:01]} 67. Bd5 {[%emt 0:00:00]} Na7 {[%emt 0:00:02]} 68. Bb7 {[%emt 0:00:01]} Kb8 {[%emt 0:00:01]} 69. Kb6 {[%emt 0:00:01]} Nc8+ {[%emt 0:00:02]} 70. Bxc8 {[%emt 0:00:00]} Kxc8 {[%emt 0:00:00]} 71. a7 {[%emt 0:00:01]} 1-0

[Event "Speed Chess Championship 2020"]
[Site "Online"]
[Date "2020.11.04"]
[Round "1.19"]
[White "Firouzja, Alireza"]
[Black "Fedoseev, Vladimir"]
[Result "1-0"]
[ECO "E63"]
[WhiteElo "2749"]
[BlackElo "2676"]
[Annotator "ChessBase"]
[PlyCount "123"]
[EventDate "2020.10.31"]
[EventType "k.o."]
[SourceTitle "playchess.com"]
[Source "ChessBase"]
[SourceQuality "1"]
[TimeControl "60+1"]

1. Nf3 {[%emt 0:00:01]} Nf6 {[%emt 0:00:01]} 2. g3 {[%emt 0:00:00]} g6 {[%emt 0:00:00]} 3. Bg2 {[%emt 0:00:01]} Bg7 {[%emt 0:00:01]} 4. O-O {[%emt 0:00:00]} O-O {[%emt 0:00:00]} 5. d4 {[%emt 0:00:00]} d6 {[%emt 0:00:02]} 6. c4 {[%emt 0:00:00]} Nc6 {[%emt 0:00:01]} 7. Nc3 {[%emt 0:00:01]} a6 {[%emt 0:00:00]} 8. b3 {[%emt 0:00:03]} Rb8 {[%emt 0:00:02]} 9. d5 {[%emt 0:00:01]} Na7 {[%emt 0:00:05]} 10. Be3 {[%emt 0:00:03]} c5 {[%emt 0:00:01]} 11. dxc6 {[%emt 0:00:00]} Nxc6 {[%emt 0:00:01]} 12. Rc1 {[%emt 0:00:00]} Bd7 {[%emt 0:00:03]} 13. Ne1 {[%emt 0:00:05]} Rc8 {[%emt 0:00:02]} 14. Nd3 {[%emt 0:00:02]} Bf5 {[%emt 0:00:03]} 15. Qd2 {[%emt 0:00:01]} Qd7 {[%emt 0:00:05]} 16. Rfd1 {[%emt 0:00:02]} Bh3 {[%emt 0:00:04]} 17. Bh1 {[%emt 0:00:02]} Qd8 {[%emt 0:00:11]} 18. Nf4 {[%emt 0:00:01]} Bd7 {[%emt 0:00:01]} 19. Bg2 {[%emt 0:00:05]} Ng4 {[%emt 0:00:01]} 20. Nfd5 {[%emt 0:00:05]} Nxe3 {[%emt 0:00:01]} 21. Qxe3 {[%emt 0:00:00]} Re8 {[%emt 0:00:02]} 22. Nb6 {[%emt 0:00:04]} Bd4 {[%emt 0:00:02]} 23. Rxd4 {[%emt 0:00:03]} Qxb6 {[%emt 0:00:00]} 24. Rd3 {[%emt 0:00:02]} Qxe3 {[%emt 0:00:01]} 25. Rxe3 {[%emt 0:00:00]} Be6 {[%emt 0:00:04]} 26. Rd1 {[%emt 0:00:02]} Rc7 {[%emt 0:00:03]} 27. f4 {[%emt 0:00:01]} Rb8 {[%emt 0:00:01]} 28. Bd5 {[%emt 0:00:05]} Bxd5 {[%emt 0:00:11]} 29. Nxd5 {[%emt 0:00:01]} Rd7 {[%emt 0:00:01]} 30. Kf2 {[%emt 0:00:02]} Kf8 {[%emt 0:00:01]} 31. Nb6 {[%emt 0:00:02]} Rdd8 {[%emt 0:00:01]} 32. Rd2 {[%emt 0:00:01]} Kg7 {[%emt 0:00:02]} 33. a3 {[%emt 0:00:02]} Re8 {[%emt 0:00:02]} 34. b4 {[%emt 0:00:01]} Rbd8 {[%emt 0:00:01]} 35. Red3 {[%emt 0:00:03]} Rb8 {[%emt 0:00:01]} 36. Rc3 {[%emt 0:00:02]} f5 {[%emt 0:00:01]} 37. Re3 {[%emt 0:00:02]} Kf7 {[%emt 0:00:01]} 38. Rb3 {[%emt 0:00:08]} Rbd8 {[%emt 0:00:01]} 39. a4 {[%emt 0:00:01]} Nb8 {[%emt 0:00:02]} 40. Rbd3 {[%emt 0:00:12]} Nd7 {[%emt 0:00:01]} 41. Nxd7 {[%emt 0:00:01]} Rxd7 {[%emt 0:00:00]} 42. c5 {[%emt 0:00:00]} Red8 {[%emt 0:00:00]} 43. cxd6 {[%emt 0:00:01]} Rxd6 {[%emt 0:00:03]} 44. Rxd6 {[%emt 0:00:01]} Rxd6 {[%emt 0:00:01]} 45. Rxd6 {[%emt 0:00:01]} exd6 {[%emt 0:00:00]} 46. Ke3 {[%emt 0:00:01]} b5 {[%emt 0:00:04]} 47. axb5 {[%emt 0:00:04]} axb5 {[%emt 0:00:01]} 48. Kd4 {[%emt 0:00:00]} Ke6 {[%emt 0:00:00]} 49. h3 {[%emt 0:00:03]} h5 {[%emt 0:00:01]} 50. e3 {[%emt 0:00:03]} Ke7 {[%emt 0:00:02]} 51. Kd5 {[%emt 0:00:01]} Kd7 {[%emt 0:00:00]} 52. h4 {[%emt 0:00:05]} Kc7 {[%emt 0:00:01]} 53. Ke6 {[%emt 0:00:01]} Kc6 {[%emt 0:00:00]} 54. Kf6 {[%emt 0:00:00]} Kd5 {[%emt 0:00:00]} 55. Kxg6 {[%emt 0:00:01]} Kc4 {[%emt 0:00:00]} 56. Kxh5 {[%emt 0:00:00]} Kxb4 {[%emt 0:00:00]} 57. Kg5 {[%emt 0:00:01]} Kc5 {[%emt 0:00:03]} 58. h5 {[%emt 0:00:00]} b4 {[%emt 0:00:00]} 59. h6 {[%emt 0:00:00]} b3 {[%emt 0:00:00]} 60. h7 {[%emt 0:00:00]} b2 {[%emt 0:00:00]} 61. h8=Q {[%emt 0:00:01]} b1=Q {[%emt 0:00:00]} 62. Qc8+ {[%emt 0:00:01]} 1-0

[Event "Speed Chess Championship 2020"]
[Site "Online"]
[Date "2020.11.15"]
[Round "1.19"]
[White "Duda, Jan-Krzysztof"]
[Black "Caruana, Fabiano"]
[Result "1-0"]
[ECO "E49"]
[WhiteElo "2743"]
[BlackElo "2823"]
[Annotator "ChessBase"]
[PlyCount "111"]
[EventDate "2020.10.31"]
[EventType "k.o."]
[EventCountry "NET"]
[SourceTitle "playchess.com"]
[Source "ChessBase"]
[SourceQuality "1"]
[TimeControl "60+1"]

1. d4 {[%emt 0:00:01]} Nf6 {[%emt 0:00:01]} 2. c4 {[%emt 0:00:00]} e6 {[%emt 0:00:00]} 3. Nc3 {[%emt 0:00:00]} Bb4 {[%emt 0:00:01]} 4. e3 {[%emt 0:00:01]} O-O {[%emt 0:00:00]} 5. Bd3 {[%emt 0:00:00]} d5 {[%emt 0:00:02]} 6. a3 {[%emt 0:00:03]} Bxc3+ {[%emt 0:00:04]} 7. bxc3 {[%emt 0:00:00]} c5 {[%emt 0:00:01]} 8. cxd5 {[%emt 0:00:03]} exd5 {[%emt 0:00:01]} 9. Ne2 {[%emt 0:00:00]} Nc6 {[%emt 0:00:01]} 10. O-O {[%emt 0:00:01]} Re8 {[%emt 0:00:02]} 11. f3 {[%emt 0:00:01]} b6 {[%emt 0:00:10]} 12. Ra2 {[%emt 0:00:01]} Qc7 {[%emt 0:00:02]} 13. Ng3 {[%emt 0:00:03]} h5 {[%emt 0:00:01]} 14. Re2 {[%emt 0:00:03]} h4 {[%emt 0:00:01]} 15. Nf5 {[%emt 0:00:00]} Bxf5 {[%emt 0:00:01]} 16. Bxf5 {[%emt 0:00:00]} g6 {[%emt 0:00:01]} 17. Bd3 {[%emt 0:00:01]} cxd4 {[%emt 0:00:10]} 18. cxd4 {[%emt 0:00:02]} Re6 {[%emt 0:00:00]} 19. Qe1 {[%emt 0:00:02]} h3 {[%emt 0:00:01]} 20. Qh4 {[%emt 0:00:02]} hxg2 {[%emt 0:00:04]} 21. Rxg2 {[%emt 0:00:00]} Kg7 {[%emt 0:00:01]} 22. Bd2 {[%emt 0:00:19]} Rh8 {[%emt 0:00:02]} 23. Qg3 {[%emt 0:00:01]} Qe7 {[%emt 0:00:02]} 24. Bb5 {[%emt 0:00:12]} Rh5 {[%emt 0:00:13]} 25. a4 {[%emt 0:00:05]} Na5 {[%emt 0:00:02]} 26. Bxa5 {[%emt 0:00:17]} bxa5 {[%emt 0:00:00]} 27. e4 {[%emt 0:00:01]} dxe4 {[%emt 0:00:01]} 28. fxe4 {[%emt 0:00:00]} Nxe4 {[%emt 0:00:02]} 29. Qf4 {[%emt 0:00:00]} Rf6 {[%emt 0:00:02]} 30. Qe3 {[%emt 0:00:01]} Rxf1+ {[%emt 0:00:02]} 31. Bxf1 {[%emt 0:00:00]} Qh4 {[%emt 0:00:02]} 32. Bd3 {[%emt 0:00:02]} Ng5 {[%emt 0:00:02]} 33. Qe5+ {[%emt 0:00:03]} Kh7 {[%emt 0:00:01]} 34. Qe3 {[%emt 0:00:04]} Nh3+ {[%emt 0:00:02]} 35. Kh1 {[%emt 0:00:00]} Qf4 {[%emt 0:00:05]} 36. Qxf4 {[%emt 0:00:03]} Nxf4 {[%emt 0:00:00]} 37. Rd2 {[%emt 0:00:00]} Rh3 {[%emt 0:00:04]} 38. Bc4 {[%emt 0:00:03]} Rc3 {[%emt 0:00:01]} 39. Bf1 {[%emt 0:00:00]} Kg7 {[%emt 0:00:02]} 40. d5 {[%emt 0:00:01]} Kf8 {[%emt 0:00:05]} 41. d6 {[%emt 0:00:01]} Ke8 {[%emt 0:00:00]} 42. Kg1 {[%emt 0:00:01]} Kd8 {[%emt 0:00:02]} 43. Kf2 {[%emt 0:00:00]} Rc5 {[%emt 0:00:01]} 44. Bb5 {[%emt 0:00:01]} Rd5 {[%emt 0:00:01]} 45. Rxd5 {[%emt 0:00:02]} Nxd5 {[%emt 0:00:00]} 46. Kf3 {[%emt 0:00:00]} Nb6 {[%emt 0:00:03]} 47. Ke4 {[%emt 0:00:01]} f6 {[%emt 0:00:00]} 48. Kd4 {[%emt 0:00:03]} a6 {[%emt 0:00:04]} 49. Bc6 {[%emt 0:00:01]} Kc8 {[%emt 0:00:02]} 50. Kc5 {[%emt 0:00:00]} Nd7+ {[%emt 0:00:00]} 51. Kd5 {[%emt 0:00:01]} Kd8 {[%emt 0:00:01]} 52. Ke6 {[%emt 0:00:01]} Ne5 {[%emt 0:00:00]} 53. Be4 {[%emt 0:00:01]} Nc4 {[%emt 0:00:02]} 54. Bxg6 {[%emt 0:00:01]} Nb2 {[%emt 0:00:02]} 55. Bc2 {[%emt 0:00:01]} f5 {[%emt 0:00:00]} 56. Kxf5 {[%emt 0:00:01]} 1-0

[Event "Speed Chess Championship 2020"]
[Site "Online"]
[Date "2020.11.12"]
[Round "1.19"]
[White "Nakamura, Hikaru"]
[Black "Martirosyan, Haik M."]
[Result "0-1"]
[ECO "C65"]
[WhiteElo "2736"]
[BlackElo "2622"]
[Annotator "ChessBase"]
[PlyCount "118"]
[EventDate "2020.10.31"]
[EventType "k.o."]
[SourceTitle "playchess.com"]
[Source "ChessBase"]
[SourceQuality "1"]
[TimeControl "60+1"]

1. e4 {[%emt 0:00:01]} e5 {[%emt 0:00:01]} 2. Nf3 {[%emt 0:00:00]} Nc6 {[%emt 0:00:00]} 3. Bb5 {[%emt 0:00:00]} Nf6 {[%emt 0:00:01]} 4. d3 {[%emt 0:00:01]} Bc5 {[%emt 0:00:00]} 5. Bxc6 {[%emt 0:00:01]} dxc6 {[%emt 0:00:00]} 6. Nbd2 {[%emt 0:00:01]} Be6 {[%emt 0:00:01]} 7. Nb3 {[%emt 0:00:01]} Bd6 {[%emt 0:00:03]} 8. Na5 {[%emt 0:00:02]} Rb8 {[%emt 0:00:01]} 9. O-O {[%emt 0:00:01]} O-O {[%emt 0:00:01]} 10. Be3 {[%emt 0:00:00]} c5 {[%emt 0:00:08]} 11. h3 {[%emt 0:00:08]} Qd7 {[%emt 0:00:10]} 12. Nd2 {[%emt 0:00:05]} b6 {[%emt 0:00:02]} 13. Nac4 {[%emt 0:00:01]} Qe7 {[%emt 0:00:08]} 14. f4 {[%emt 0:00:05]} exf4 {[%emt 0:00:00]} 15. Bxf4 {[%emt 0:00:00]} Bxf4 {[%emt 0:00:01]} 16. Rxf4 {[%emt 0:00:00]} Nd7 {[%emt 0:00:00]} 17. Qh5 {[%emt 0:00:05]} f6 {[%emt 0:00:05]} 18. Raf1 {[%emt 0:00:01]} b5 {[%emt 0:00:01]} 19. Ne3 {[%emt 0:00:03]} Ne5 {[%emt 0:00:01]} 20. Rh4 {[%emt 0:00:06]} g5 {[%emt 0:00:02]} 21. Rg4 {[%emt 0:00:06]} Bf7 {[%emt 0:00:08]} 22. Qh6 {[%emt 0:00:05]} Bg6 {[%emt 0:00:01]} 23. Rg3 {[%emt 0:00:04]} Nf7 {[%emt 0:00:02]} 24. Nd5 {[%emt 0:00:02]} Qd6 {[%emt 0:00:04]} 25. Rxf6 {[%emt 0:00:04]} Nxh6 {[%emt 0:00:04]} 26. Rxd6 {[%emt 0:00:01]} cxd6 {[%emt 0:00:00]} 27. Rxg5 {[%emt 0:00:00]} Nf7 {[%emt 0:00:01]} 28. Rg3 {[%emt 0:00:01]} b4 {[%emt 0:00:03]} 29. Nc4 {[%emt 0:00:02]} Kh8 {[%emt 0:00:01]} 30. Nf4 {[%emt 0:00:02]} Ne5 {[%emt 0:00:02]} 31. Nxg6+ {[%emt 0:00:03]} hxg6 {[%emt 0:00:00]} 32. Nxd6 {[%emt 0:00:01]} Rfd8 {[%emt 0:00:03]} 33. Rg5 {[%emt 0:00:01]} Rxd6 {[%emt 0:00:02]} 34. Rxe5 {[%emt 0:00:00]} c4 {[%emt 0:00:00]} 35. dxc4 {[%emt 0:00:01]} Rd2 {[%emt 0:00:01]} 36. b3 {[%emt 0:00:01]} Rxc2 {[%emt 0:00:00]} 37. Rg5 {[%emt 0:00:01]} Kh7 {[%emt 0:00:02]} 38. h4 {[%emt 0:00:01]} Rd8 {[%emt 0:00:01]} 39. e5 {[%emt 0:00:02]} Rxa2 {[%emt 0:00:01]} 40. e6 {[%emt 0:00:00]} Re2 {[%emt 0:00:01]} 41. Ra5 {[%emt 0:00:01]} Rdd2 {[%emt 0:00:01]} 42. Rg5 {[%emt 0:00:01]} Rxe6 {[%emt 0:00:01]} 43. c5 {[%emt 0:00:07]} a5 {[%emt 0:00:03]} 44. Rg4 {[%emt 0:00:01]} a4 {[%emt 0:00:01]} 45. bxa4 {[%emt 0:00:01]} b3 {[%emt 0:00:00]} 46. a5 {[%emt 0:00:02]} b2 {[%emt 0:00:01]} 47. Rb4 {[%emt 0:00:00]} Re1+ {[%emt 0:00:01]} 48. Kh2 {[%emt 0:00:07]} b1=Q {[%emt 0:00:00]} 49. Rxb1 {[%emt 0:00:07]} Rxb1 {[%emt 0:00:00]} 50. a6 {[%emt 0:00:00]} Ra1 {[%emt 0:00:01]} 51. c6 {[%emt 0:00:00]} Rc2 {[%emt 0:00:00]} 52. c7 {[%emt 0:00:00]} Rxc7 {[%emt 0:00:01]} 53. a7 {[%emt 0:00:05]} Raxa7 {[%emt 0:00:00]} 54. h5 {[%emt 0:00:00]} gxh5 {[%emt 0:00:01]} 55. Kh3 {[%emt 0:00:00]} Rc4 {[%emt 0:00:01]} 56. g3 {[%emt 0:00:01]} Ra3 {[%emt 0:00:00]} 57. Kh2 {[%emt 0:00:00]} Rcc3 {[%emt 0:00:01]} 58. Kh3 {[%emt 0:00:00]} Rxg3+ {[%emt 0:00:01]} 59. Kh4 {[%emt 0:00:00]} Rg1 {[%emt 0:00:03]} 0-1

[Event "Speed Chess Championship 2020"]
[Site "Online"]
[Date "2020.11.16"]
[Round "1.19"]
[White "Artemiev, Vladislav"]
[Black "Giri, Anish"]
[Result "1/2-1/2"]
[ECO "A06"]
[WhiteElo "2708"]
[BlackElo "2764"]
[Annotator "ChessBase"]
[PlyCount "48"]
[EventDate "2020.10.31"]
[EventType "k.o."]
[EventCountry "NET"]
[SourceTitle "playchess.com"]
[Source "ChessBase"]
[SourceQuality "1"]
[TimeControl "60+1"]

1. b3 {[%emt 0:00:01]} d5 {[%emt 0:00:01]} 2. Bb2 {[%emt 0:00:00]} Bf5 {[%emt 0:00:00]} 3. e3 {[%emt 0:00:01]} e6 {[%emt 0:00:02]} 4. Nf3 {[%emt 0:00:00]} Nf6 {[%emt 0:00:01]} 5. h3 {[%emt 0:00:01]} h6 {[%emt 0:00:00]} 6. d3 {[%emt 0:00:01]} a5 {[%emt 0:00:02]} 7. a3 {[%emt 0:00:01]} Nbd7 {[%emt 0:00:01]} 8. Nbd2 {[%emt 0:00:01]} Bh7 {[%emt 0:00:01]} 9. g3 {[%emt 0:00:03]} Bd6 {[%emt 0:00:02]} 10. Bg2 {[%emt 0:00:00]} O-O {[%emt 0:00:00]} 11. O-O {[%emt 0:00:01]} c6 {[%emt 0:00:01]} 12. Qe2 {[%emt 0:00:00]} Qe7 {[%emt 0:00:01]} 13. e4 {[%emt 0:00:01]} dxe4 {[%emt 0:00:02]} 14. dxe4 {[%emt 0:00:00]} e5 {[%emt 0:00:00]} 15. Nh4 {[%emt 0:00:01]} Rfd8 {[%emt 0:00:01]} 16. Nf5 {[%emt 0:00:02]} Bxf5 {[%emt 0:00:01]} 17. exf5 {[%emt 0:00:00]} Re8 {[%emt 0:00:01]} 18. Rfe1 {[%emt 0:00:02]} Bc7 {[%emt 0:00:01]} 19. Rad1 {[%emt 0:00:04]} Rad8 {[%emt 0:00:01]} 20. h4 {[%emt 0:00:02]} Qc5 {[%emt 0:00:03]} 21. Qc4 {[%emt 0:00:09]} Qa7 {[%emt 0:00:03]} 22. Qe2 {[%emt 0:00:07]} Qc5 {[%emt 0:00:01]} 23. Qc4 {[%emt 0:00:01]} Qa7 {[%emt 0:00:00]} 24. Qe2 {[%emt 0:00:01]} Qc5 {[%emt 0:00:01]} 1/2-1/2

[Event "Speed Chess Championship 2020"]
[Site "Online"]
[Date "2020.11.15"]
[Round "1.20"]
[White "Caruana, Fabiano"]
[Black "Duda, Jan-Krzysztof"]
[Result "0-1"]
[ECO "A46"]
[WhiteElo "2823"]
[BlackElo "2743"]
[Annotator "RC"]
[PlyCount "102"]
[EventDate "2020.10.31"]
[EventType "k.o."]
[EventCountry "NET"]
[SourceTitle "playchess.com"]
[Source "ChessBase"]
[SourceQuality "1"]
[TimeControl "60+1"]

1. d4 {[%emt 0:00:01]} Nf6 {[%emt 0:00:01]} 2. Nf3 {[%emt 0:00:00]} e6 {[%emt 0:00:00]} 3. g3 {[%emt 0:00:00]} d5 {[%emt 0:00:01]} 4. Bg2 {[%emt 0:00:00]} b5 {[%emt 0:00:01]} 5. O-O {[%emt 0:00:01]} Bb7 {[%emt 0:00:00]} 6. c3 {[%emt 0:00:01]} Be7 {[%emt 0:00:01]} 7. a4 {[%emt 0:00:01]} a6 {[%emt 0:00:01]} 8. Re1 {[%emt 0:00:02]} O-O {[%emt 0:00:01]} 9. Bf4 {[%emt 0:00:00]} Nbd7 {[%emt 0:00:01]} 10. Nbd2 {[%emt 0:00:01]} c5 {[%emt 0:00:00]} 11. Ne5 {[%emt 0:00:00]} cxd4 {[%emt 0:00:02]} 12. cxd4 {[%emt 0:00:02]} Nxe5 {[%emt 0:00:01]} 13. Bxe5 {[%emt 0:00:03]} Nd7 {[%emt 0:00:00]} 14. Bf4 {[%emt 0:00:01]} Qb6 {[%emt 0:00:01]} 15. axb5 {[%emt 0:00:01]} axb5 {[%emt 0:00:04]} 16. Rxa8 {[%emt 0:00:02]} Rxa8 {[%emt 0:00:00]} 17. Nb3 {[%emt 0:00:01]} b4 {[%emt 0:00:03]} 18. Qd2 {[%emt 0:00:02]} Rc8 {[%emt 0:00:05]} 19. Rc1 {[%emt 0:00:02]} Rxc1+ {[%emt 0:00:03]} 20. Qxc1 {[%emt 0:00:00]} Qc6 {[%emt 0:00:00]} 21. Qxc6 {[%emt 0:00:02]} Bxc6 {[%emt 0:00:00]} 22. Na5 {[%emt 0:00:01]} Bb5 {[%emt 0:00:01]} 23. e3 {[%emt 0:00:03]} g5 {[%emt 0:00:02]} 24. Bc7 {[%emt 0:00:01]} g4 {[%emt 0:00:03]} 25. Bf1 {[%emt 0:00:01]} Bxf1 {[%emt 0:00:01]} 26. Kxf1 {[%emt 0:00:00]} Nf6 {[%emt 0:00:01]} 27. Nc6 {[%emt 0:00:01]} Bf8 {[%emt 0:00:00]} 28. b3 {[%emt 0:00:05]} Ne4 {[%emt 0:00:01]} 29. Ke2 {[%emt 0:00:01]} Nc3+ {[%emt 0:00:06]} 30. Ke1 {[%emt 0:00:01]} h5 {[%emt 0:00:01]} 31. Ba5 {[%emt 0:00:01]} Na2 {[%emt 0:00:02]} 32. Kd2 {[%emt 0:00:01]} Kg7 {[%emt 0:00:01]} 33. Ne5 {[%emt 0:00:02]} Bd6 {[%emt 0:00:03]} 34. Nd3 {[%emt 0:00:06]} Kf6 {[%emt 0:00:01]} 35. Ke2 {[%emt 0:00:02]} Kf5 {[%emt 0:00:01]} 36. f3 {[%emt 0:00:01]} f6 {[%emt 0:00:01]} 37. Kf2 {[%emt 0:00:06]} e5 {[%emt 0:00:01]} 38. dxe5 {[%emt 0:00:02]} fxe5 {[%emt 0:00:00]} 39. Ne1 {[%emt 0:00:07]} Nc1 {[%emt 0:00:03]} 40. Nc2 {[%emt 0:00:02]} Bc5 {[%emt 0:00:04]} 41. Kg2 {[%emt 0:00:09]} Nd3 {[%emt 0:00:01]} 42. fxg4+ {[%emt 0:00:03]} hxg4 {[%emt 0:00:00]} 43. Kf1 {[%emt 0:00:02]} Ke4 {[%emt 0:00:04]} 44. Ke2 {[%emt 0:00:01]} Nc1+ {[%emt 0:00:10]} 45. Kd1 {[%emt 0:00:01]} Na2 {[%emt 0:00:01]} 46. Kd2 {[%emt 0:00:02]} Be7 {[%emt 0:00:03]} 47. Bc7 {[%emt 0:00:03]} Bg5 {[%emt 0:00:03]} 48. Bd6 {[%emt 0:00:02]} d4 {[%emt 0:00:01]} 49. Bxb4 {[%emt 0:00:06]} Bxe3+ {[%emt 0:00:06]} 50. Kd1 {[%emt 0:00:01]} Nxb4 {[%emt 0:00:05]} 51. Nxb4 {[%emt 0:00:00]} Bg1 {[%emt 0:00:01]} 0-1